bitfinex-derivatives/quotes_ETHF0:USTF0_20250923
["timestamp","ask_amount","ask_price","bid_price","bid_amount"]
[1758652963711,0.132,4160.0,4159.3,3.9366]
[1758652963912,1.002,4160.4,4160.3,0.4178]
[1758652964111,1.93491959,4160.4,4160.3,0.4178]
[1758652965315,0.43251,4160.1,4160.0,0.2114]
[1758652965518,1.36854959,4160.1,4160.0,0.2114]
[1758652966007,1.68894959,4160.1,4160.0,0.4178]
[1758652966718,1.25643959,4160.1,4160.0,0.7288]
[1758652966908,1.68894959,4160.1,4160.0,0.7288]
[1758652967215,1.68894959,4160.1,4160.0,0.4178]
[1758652968221,0.5339,4159.4,4159.3,4.36919]
[1758652968420,0.756,4159.9,4159.8,0.4178]
[1758652968612,1.25724795,4159.9,4159.8,0.85034]
[1758652969019,1.25724795,4159.9,4159.8,0.4178]
[1758652969315,1.25724795,4159.9,4159.8,0.85034]
[1758652969515,1.25724795,4159.9,4159.8,1.16134]
[1758652969918,1.68977795,4159.9,4159.8,0.4178]
[1758652970313,1.25724795,4159.9,4159.8,0.4178]
[1758652970616,1.25724795,4159.9,4159.5,0.74357]
[1758652970819,0.756,4159.6,4159.5,0.64397]
[1758652971020,1.18856,4159.6,4159.5,0.2114]
[1758652971212,1.18858,4159.4,4159.3,3.2078]
[1758652971411,1.93636376,4159.4,4159.3,3.2078]
[1758652972419,0.756,4158.9,4158.8,0.64404]
[1758652972614,0.756,4158.9,4158.7,3.2078]
[1758652972615,0.96654,4158.8,4158.7,3.2078]
[1758652972822,1.69052026,4158.8,4158.7,3.2078]
[1758652973519,1.25788026,4158.8,4158.7,3.6441]
[1758652973914,1.25788026,4158.8,4158.7,3.4291]
[1758652974316,1.25788026,4158.8,4158.7,3.2078]
[1758652976023,1.25788026,4158.8,4158.7,3.4291]
[1758652976414,1.25788026,4158.8,4158.7,3.6441]
[1758652976611,0.50188026,4158.8,4158.7,3.9658]
[1758652976819,0.8995,4159.5,4159.4,0.4363]
[1758652977021,1.65274043,4159.5,4159.4,0.758]
[1758652977720,0.50724043,4159.5,4159.4,0.758]
[1758652977923,0.246,4159.6,4159.5,0.86887]
[1758652978117,1.30901379,4159.6,4159.5,0.758]
[1758652979307,1.52071379,4159.6,4159.5,0.4363]
[1758652979618,0.7675,4159.4,4159.3,0.65389]
[1758652979919,0.7675,4159.3,4159.2,3.6441]
[1758652980522,0.7675,4159.3,4159.2,4.0767]
[1758652980717,0.5558,4159.3,4159.2,4.3984]
[1758652980928,0.3322,4159.3,4159.2,4.3984]
[1758652981426,1.20003,4159.9,4159.8,0.4363]
[1758652981620,1.95317916,4159.9,4159.8,0.4363]
[1758652981815,1.52064916,4159.9,4159.8,0.86884]
[1758652982124,0.75314916,4159.9,4159.8,1.19054]
[1758652982327,0.246,4159.9,4159.8,4.39834]
[1758652984826,1.27449995,4160.2,4160.1,0.4363]
[1758652985120,0.4642,4160.5,4160.1,0.758]
[1758652985326,0.9338,4160.5,4160.4,0.758]
[1758652985518,1.44219265,4160.5,4160.4,0.758]
[1758652985914,1.19619265,4160.5,4160.4,0.758]
[1758652986115,0.246,4160.7,4160.5,0.3217]
[1758652986319,0.5782,4160.7,4160.6,1.19046]
[1758652986521,1.0135,4160.7,4160.6,0.4363]
[1758652987016,1.44595,4160.7,4160.6,0.4363]
[1758652987329,1.44595,4160.7,4160.6,0.2213]
[1758652988033,1.20003,4159.9,4159.8,3.2078]
[1758652988223,1.44603,4159.9,4159.8,3.2078]
[1758652988424,1.95469034,4159.9,4159.8,3.2078]
[1758652989429,0.75466034,4159.9,4159.3,3.9658]
[1758652989637,1.44603,4159.9,4159.8,0.2213]
[1758652989934,0.7675,4159.4,4159.3,3.2078]
[1758652990229,1.20008,4159.4,4159.3,3.2078]
[1758652990622,0.7675,4159.4,4159.3,3.86169]
[1758652990826,0.7675,4159.4,4159.3,4.07669]
[1758652991020,1.20008,4159.4,4159.3,3.6441]
[1758652991829,0.7675,4159.4,4159.3,3.6441]
[1758652992130,1.20008,4159.4,4159.3,3.4291]
[1758652992329,1.20008,4159.4,4159.3,3.2078]
[1758652993831,1.20008,4159.4,4159.3,3.4153]
[1758652994329,0.56433,4159.0,4158.9,0.2075]
[1758652994630,1.16463,4158.9,4158.8,3.2078]
[1758652994932,1.16463,4158.9,4158.8,3.4153]
[1758652995128,0.246,4159.0,4158.8,4.06754]
[1758652995324,1.54232,4159.0,4158.9,0.4271]
[1758652995526,2.05105657,4159.0,4158.9,0.4271]
[1758652996433,2.05105657,4159.0,4158.8,3.4153]
[1758652996434,1.16463,4158.9,4158.8,3.4153]
[1758652996727,1.16463,4158.9,4158.8,3.2078]
[1758652996933,1.16463,4158.9,4158.3,0.3032]
[1758652996934,0.556,4158.5,4158.4,0.2075]
[1758652997234,1.1097,4158.5,4158.4,0.2075]
[1758652997732,1.54237,4158.5,4158.4,0.2075]
[1758652998923,1.16468,4158.4,4158.3,3.4153]
[1758652999230,1.16468,4158.4,4158.3,3.2078]
[1758652999442,1.67317848,4158.4,4158.3,3.2078]
[1758653001125,2.11123848,4158.4,4157.8,3.4153]
[1758653001325,0.732,4157.9,4157.8,3.4153]
[1758653001528,1.41074,4157.9,4157.8,3.4153]
[1758653003831,1.41074,4157.9,4157.8,3.2078]
[1758653004037,1.41074,4157.9,4157.2,3.4264]
[1758653004038,1.1728,4157.3,4157.2,3.4264]
[1758653004234,1.4188,4157.3,4157.2,2.22358638]
[1758653004531,1.4188,4157.3,4157.2,2.00498638]
[1758653004738,1.4188,4157.3,4157.2,2.22358638]
[1758653006041,0.43284,4156.9,4156.8,0.314]
[1758653006224,1.30213,4157.0,4156.9,0.4225]
[1758653006833,0.8693,4157.0,4156.9,0.4225]
[1758653007039,0.6511,4157.0,4156.9,0.7365]
[1758653007337,1.30213,4157.0,4156.9,0.4225]
[1758653007533,1.30213,4157.0,4156.9,0.2186]
[1758653008238,0.43285,4156.8,4156.7,3.2078]
[1758653008430,1.17285,4156.8,4156.7,3.4264]
[1758653009134,0.74,4156.8,4156.7,3.6303]
[1758653010431,0.986,4156.8,4156.7,3.6303]
[1758653011234,1.41885,4156.8,4156.7,3.6303]
[1758653011938,0.986,4156.8,4156.7,3.6303]
[1758653012134,1.41885,4156.8,4156.7,3.6303]
[1758653012437,1.41885,4156.8,4156.1,0.4225]
[1758653012438,0.1293,4156.5,4156.1,0.4225]
[1758653012738,1.17291,4156.2,4156.1,0.08690001]
[1758653012942,0.95476,4155.8,4155.7,3.6303]
[1758653013238,0.95476,4155.8,4155.7,3.8474]
[1758653013634,0.308,4155.8,4155.7,3.8474]
[1758653013835,0.74096,4155.8,4155.7,3.8474]
[1758653014740,0.308,4155.8,4155.7,3.8474]
[1758653014936,0.74096,4155.8,4155.7,3.8474]
[1758653016539,1.17296,4155.8,4155.7,3.6303]
[1758653016839,1.17296,4155.8,4155.7,0.4225]
[1758653017932,1.17296,4155.8,4155.1,3.64083]
[1758653017933,1.17299,4155.4,4155.3,0.2186]
[1758653018133,0.43302,4155.2,4155.1,3.2078]
[1758653018334,1.173,4155.3,4155.2,0.2186]
[1758653018644,1.173,4155.3,4155.2,0.4225]
[1758653019029,0.308,4155.3,4155.2,0.6396]
[1758653019240,0.741,4155.3,4155.2,0.6396]
[1758653019542,0.9548,4155.3,4155.2,0.6396]
[1758653020337,1.173,4155.3,4155.2,0.4225]
[1758653021343,1.173,4155.3,4155.2,0.2186]
[1758653021539,0.74,4155.3,4155.2,0.2186]
[1758653021843,1.173,4155.3,4155.2,0.2186]
[1758653024738,0.74,4155.3,4155.2,0.4225]
[1758653024940,1.17301,4155.3,4155.2,0.4225]
[1758653026343,1.17301,4155.3,4154.4,1.32875]
[1758653026344,0.56239,4154.5,4154.1,3.2078]
[1758653026552,0.74,4154.2,4154.1,3.4264]
[1758653027051,1.17312,4154.2,4154.1,3.4264]
[1758653027450,1.17312,4154.2,4154.1,3.2078]
[1758653027650,0.74,4154.2,4154.1,3.4264]
[1758653027858,0.74,4154.2,4154.1,3.6303]
[1758653028347,1.17312,4154.2,4154.1,3.6303]
[1758653029246,0.5218,4154.2,4154.1,4.28053]
[1758653029451,0.7678,4154.2,4154.1,4.28053]
[1758653030250,0.7678,4154.2,4154.1,3.8474]
[1758653030755,0.7678,4154.2,4154.1,4.28053]
[1758653031157,0.7678,4154.2,4154.1,3.8474]
[1758653031452,0.7678,4154.2,4154.1,4.06343]
[1758653031645,0.7678,4154.2,4154.1,3.6303]
[1758653031847,0.986,4154.2,4154.1,3.6303]
[1758653032048,0.7678,4154.2,4154.1,4.28053]
[1758653033160,0.7678,4154.2,4154.1,3.8474]
[1758653033454,1.41312,4154.2,4154.1,3.6303]
[1758653033650,0.5132,4153.7,4153.6,4.06608]
[1758653034149,0.7254,4153.7,4153.6,4.06608]
[1758653035161,0.7254,4153.7,4153.6,3.6329]
[1758653035447,0.7254,4153.7,4153.6,4.06608]
[1758653036249,0.7254,4153.7,4153.6,4.28328]
[1758653036951,0.31,4153.7,4153.6,4.28328]
[1758653037252,0.84857,4153.7,4153.6,3.2078]
[1758653037550,1.15861,4153.3,4153.2,0.4251]
[1758653037856,1.15861,4153.3,4153.2,0.85832]
[1758653038151,1.15861,4153.3,4153.2,0.4251]
[1758653038555,0.7254,4153.3,4153.2,0.85832]
[1758653039056,1.15861,4153.3,4153.2,0.4251]
[1758653039648,1.15861,4153.3,4153.2,0.85832]
[1758653039854,0.5132,4153.3,4153.2,1.07552]
[1758653040660,0.94641,4153.3,4153.2,0.85832]
[1758653040856,1.15861,4153.3,4153.2,0.85832]
[1758653041050,1.15861,4153.3,4153.2,0.4251]
[1758653041250,0.7254,4153.3,4153.2,0.85832]
[1758653041656,0.7254,4153.3,4153.2,1.07552]
[1758653041850,1.15861,4153.3,4153.2,0.85832]
[1758653042053,1.15861,4153.3,4153.2,0.4251]
[1758653042250,1.15861,4153.3,4153.2,0.85832]
[1758653042453,1.15861,4153.3,4153.2,0.2175]
[1758653042653,1.15861,4153.3,4153.2,0.65072]
[1758653043558,1.15861,4153.3,4153.2,0.2175]
[1758653043758,0.7254,4153.3,4153.2,0.65072]
[1758653044260,1.15861,4153.3,4153.2,0.2175]
[1758653044456,0.7254,4153.3,4153.2,0.65072]
[1758653044960,0.7254,4153.3,4153.2,1.07552]
[1758653045262,0.5132,4153.3,4153.2,1.07552]
[1758653045456,0.7254,4153.3,4153.2,0.85832]
[1758653045855,1.28944,4153.0,4152.9,0.02407985]
[1758653046161,2.04545775,4153.0,4152.9,0.21646553]
[1758653047357,2.04545775,4153.0,4152.7,0.43328]
[1758653047358,1.15867,4152.8,4152.7,0.2175]
[1758653047663,1.23541775,4152.8,4152.7,0.2175]
[1758653047864,1.23541775,4152.8,4152.7,0.65078]
[1758653048164,1.23541775,4152.8,4152.7,0.85838]
[1758653048362,1.26921775,4152.8,4152.7,1.07458]
[1758653048756,0.9714,4152.8,4152.7,0.85838]
[1758653049766,0.9714,4152.8,4152.7,0.65078]
[1758653049967,1.48143897,4152.8,4152.7,0.43328]
[1758653050356,0.31,4152.7,4152.6,3.64109]
[1758653050557,1.23543897,4152.7,4152.6,3.64109]
[1758653051057,1.23543897,4152.7,4152.6,3.85859]
[1758653051956,1.66871897,4152.7,4152.6,3.2078]
[1758653052164,1.66871897,4152.7,4152.1,0.00738086]
[1758653052165,1.16273,4152.2,4152.1,0.00738086]
[1758653052365,1.72321796,4152.2,4152.1,0.00738086]
[1758653052560,1.72321796,4152.2,4152.1,0.44072086]
[1758653053561,1.72321796,4152.2,4152.1,0.00738086]
[1758653053759,1.72321796,4152.2,4152.1,0.44072086]
[1758653054258,0.54505388,4152.2,4152.1,1.08452086]
[1758653054457,0.5186,4152.3,4152.2,0.64533]
[1758653054657,1.47764197,4152.3,4152.2,0.64533]
[1758653055162,1.47764197,4152.3,4152.2,0.86063]
[1758653055163,0.7294,4152.3,4152.2,0.86063]
[1758653056364,0.7294,4152.3,4152.2,4.06843]
[1758653057359,0.3075,4152.3,4152.2,4.28493]
[1758653057561,0.436,4152.5,4152.4,0.86061]
[1758653057863,0.81823535,4152.5,4152.4,1.07711]
[1758653058062,0.246,4152.8,4152.7,0.43328]
[1758653058257,0.4568,4152.8,4152.7,0.86058]
[1758653058455,0.96752576,4152.8,4152.7,0.86058]
[1758653058665,1.27502576,4152.8,4152.7,0.86058]
[1758653059061,1.27502576,4152.8,4152.7,1.07708]
[1758653059461,1.24012576,4152.8,4152.7,4.06838]
[1758653059660,0.7294,4152.8,4152.7,4.06838]
[1758653060070,0.7294,4152.8,4152.7,3.6351]
[1758653060364,1.16267,4152.8,4152.7,3.2078]
[1758653060562,1.24035427,4152.8,4152.7,3.64108]
[1758653061068,1.67362427,4152.8,4152.7,3.2078]
[1758653061266,1.24035427,4152.8,4152.7,3.64108]
[1758653061959,1.24035427,4152.8,4152.7,3.2078]
[1758653062469,0.8579,4152.5,4152.4,0.86061]
[1758653062868,0.6468,4152.5,4152.4,1.07711]
[1758653063265,0.3142,4152.9,4152.8,0.85217]
[1758653063468,0.82548886,4152.9,4152.8,1.06887]
[1758653063674,1.04158886,4152.9,4152.8,0.85217]
[1758653064156,0.08317193,4152.9,4152.8,6.16657]
[1758653064361,0.20836,4154.4,4154.0,0.4189]
[1758653064362,0.2161,4154.1,4154.0,0.4189]
[1758653064671,0.62676,4154.4,4154.3,0.7333]
[1758653065163,0.62676,4154.4,4154.3,0.4189]
[1758653065563,0.4184,4153.8,4153.7,0.64966]
[1758653065768,0.4184,4153.8,4153.7,0.4189]
[1758653066160,0.4184,4153.8,4153.7,0.2165]
[1758653066364,0.8583,4153.5,4153.4,3.4243]
[1758653066556,0.8583,4153.5,4153.4,0.2165]
[1758653066760,0.7326,4153.4,4153.3,1.16651]
[1758653068971,0.7326,4153.4,4152.9,3.5222]
[1758653069175,0.7326,4153.1,4153.0,0.4189]
[1758653070175,0.8583,4153.0,4152.9,3.4243]
[1758653070866,0.8583,4153.0,4152.9,3.85756]
[1758653071165,0.8583,4153.0,4152.9,4.05996]
[1758653071558,0.8583,4153.0,4152.9,4.37436]
[1758653072565,1.29154,4153.0,4152.9,3.6267]
[1758653074471,0.63249788,4153.0,4152.9,3.4243]
[1758653074673,0.63249788,4153.0,4152.9,4.37436]
[1758653074869,0.63249788,4153.0,4152.9,3.9411]
[1758653075472,0.4184,4153.0,4152.9,4.37436]
[1758653076078,0.4184,4153.0,4152.9,3.9411]
[1758653076475,0.7326,4153.0,4152.9,3.4243]
[1758653076683,0.7326,4153.0,4152.9,3.9411]
[1758653076875,0.7326,4153.0,4152.9,4.37436]
[1758653077071,0.5303,4153.0,4152.9,4.37436]
[1758653077273,0.5303,4153.0,4152.9,3.9411]
[1758653077274,1.67849828,4153.0,4152.9,3.9411]
[1758653078376,0.7326,4152.6,4152.5,1.2885]
[1758653081081,0.4184,4152.6,4152.5,1.2885]
[1758653081375,3.522,4153.1,4153.0,0.43324]
[1758653081581,4.45308327,4153.1,4153.0,0.96414]
[1758653081876,0.43325,4153.0,4152.8,0.74767]
[1758653082081,1.24528327,4152.9,4152.8,1.16657]
[1758653082476,0.7326,4152.9,4152.8,1.16657]
[1758653083071,0.246,4153.2,4153.1,0.7333]
[1758653083472,0.246,4153.2,4153.1,1.16653]
[1758653083678,3.7381,4153.6,4153.5,1.16649]
[1758653083878,3.72051721,4153.6,4153.5,1.28839]
[1758653084081,3.96651721,4153.6,4153.5,1.28839]
[1758653084377,3.96651721,4153.6,4153.1,1.08309]
[1758653084378,0.2161,4153.2,4153.1,1.16653]
[1758653084980,0.2161,4153.2,4153.1,0.7333]
[1758653085180,0.3142,4153.1,4152.9,3.2078]
[1758653085385,1.16584,4153.1,4153.0,0.5309]
[1758653085690,1.67864809,4153.1,4153.0,0.5309]
[1758653086285,1.67863809,4153.1,4153.0,0.2165]
[1758653087582,1.24540809,4153.1,4153.0,0.64974]
[1758653087883,1.24540809,4153.1,4153.0,1.16654]
[1758653088384,1.67863809,4153.1,4153.0,0.2165]
[1758653088581,1.24540809,4153.1,4153.0,0.7333]
[1758653088879,1.24540809,4153.1,4153.0,1.16654]
[1758653091184,1.67863809,4153.1,4153.0,0.7333]
[1758653091488,1.24540809,4153.1,4153.0,0.7333]
[1758653091679,0.51280809,4153.1,4153.0,1.28844]
[1758653092075,0.72890809,4153.1,4153.0,1.28844]
[1758653092878,0.51280809,4153.1,4153.0,1.28844]
[1758653093989,0.73330809,4153.1,4153.0,1.28844]
[1758653095489,1.71763809,4153.1,4153.0,0.8552]
[1758653095688,1.71763809,4153.1,4153.0,0.7333]
[1758653095886,1.28440809,4153.1,4153.0,1.16654]
[1758653097487,1.06540809,4153.1,4153.0,1.16654]
[1758653097685,1.06540809,4153.1,4153.0,1.29814]
[1758653097686,0.51280809,4153.1,4153.0,1.29814]
[1758653098687,0.73330809,4153.1,4153.0,1.29814]
[1758653098991,0.73330809,4153.1,4153.0,0.8649]
[1758653099186,1.28440809,4153.1,4153.0,1.29814]
[1758653099790,0.51280809,4153.1,4153.0,1.29814]
[1758653099987,0.19670766,4153.1,4153.0,1.29814]
[1758653100287,0.246,4153.2,4153.1,1.20233]
[1758653100886,1.0176,4153.2,4153.1,1.20233]
[1758653101284,1.0176,4153.2,4153.1,0.2114]
[1758653101691,1.0176,4153.2,4153.1,0.64463]
[1758653101887,1.0176,4153.2,4153.1,0.2114]
[1758653102092,1.45082,4153.2,4153.1,0.2114]
[1758653102294,1.0176,4153.2,4153.1,0.5463]
[1758653102493,1.0176,4153.2,4153.1,0.97953]
[1758653102685,0.6855,4153.2,4153.1,1.20233]
[1758653102890,0.7716,4153.6,4153.5,0.9007]
[1758653103193,1.45078,4153.6,4153.5,0.7691]
[1758653103397,0.87269,4153.5,4153.4,0.2114]
[1758653103599,1.20479,4153.5,4153.4,0.2114]
[1758653103901,1.33209,4153.5,4153.2,0.76812]
[1758653104193,1.20481,4153.3,4153.2,0.5463]
[1758653104590,0.7716,4153.3,4153.2,0.5463]
[1758653104794,0.43324,4153.1,4153.0,0.2114]
[1758653105100,0.43324,4153.1,4152.7,0.43327]
[1758653105101,0.7716,4152.8,4152.7,0.5463]
[1758653105489,1.20487,4152.8,4152.7,0.7691]
[1758653107299,1.2049,4152.6,4152.5,0.5463]
[1758653107501,0.7716,4152.6,4152.5,0.5463]
[1758653107796,0.7716,4152.6,4152.5,0.7691]
[1758653108095,0.7716,4152.6,4152.5,1.2024]
[1758653108301,0.65376,4152.9,4152.8,0.4342]
[1758653108493,0.7716,4152.9,4152.6,0.3349]
[1758653108690,0.7716,4152.9,4152.5,0.1316]
[1758653108891,0.87278,4152.7,4152.6,0.5463]
[1758653109199,1.20488,4152.7,4152.6,0.5463]
[1758653109502,0.7716,4152.7,4152.6,1.20239]
[1758653109798,1.20488,4152.7,4152.6,0.7691]
[1758653110498,0.7716,4152.7,4152.6,1.20239]
[1758653111299,1.20488,4152.7,4152.6,0.7691]
[1758653111492,0.7716,4152.7,4152.6,1.20239]
[1758653111889,0.246,4153.1,4153.0,0.63624]
[1758653112200,0.75845328,4153.1,4153.0,0.96674]
[1758653112503,0.75845328,4153.1,4153.0,1.27744]
[1758653112801,0.246,4153.1,4153.0,1.27744]
[1758653113497,1.40883,4153.1,4152.9,3.2078]
[1758653113701,1.67522135,4153.0,4152.9,3.7215]
[1758653113900,1.80202135,4153.0,4152.9,0.203]
[1758653114099,1.16288,4152.7,4152.6,0.7228]
[1758653114299,1.67526135,4152.7,4152.6,0.5137]
[1758653114597,1.24198135,4152.7,4152.6,0.7228]
[1758653115306,1.67526135,4152.7,4152.6,1.15609]
[1758653115597,1.67526135,4152.7,4152.6,0.7228]
[1758653115796,1.24198135,4152.7,4152.6,1.15609]
[1758653117097,1.67526135,4152.7,4152.6,1.15609]
[1758653117297,1.24198135,4152.7,4152.6,1.15609]
[1758653117898,0.51238135,4152.7,4152.6,1.15609]
[1758653118103,1.16278,4153.6,4153.5,0.7228]
[1758653118300,1.92146321,4153.6,4153.5,0.7228]
[1758653118701,1.92146321,4153.6,4153.5,0.203]
[1758653119208,0.3085,4153.2,4153.1,3.2078]
[1758653119399,1.24228321,4153.2,4153.1,4.36383]
[1758653120104,1.24228321,4153.2,4153.1,3.9306]
[1758653120305,1.24228321,4153.2,4152.9,0.43325]
[1758653120306,1.67550321,4153.2,4152.5,3.3292]
[1758653120505,0.7296,4152.9,4152.8,0.94696]
[1758653120706,0.2114,4152.9,4152.8,1.15606]
[1758653120901,0.4574,4153.1,4153.0,1.27744]
[1758653121105,0.9700307,4153.1,4153.0,4.48524]
[1758653121503,0.7240307,4153.1,4153.0,4.48524]
[1758653122806,0.246,4153.2,4153.1,0.84533]
[1758653123009,0.75857672,4153.2,4153.1,1.15603]
[1758653124310,0.4574,4153.2,4153.1,1.15604]
[1758653124709,0.9698865,4153.2,4153.1,1.15604]
[1758653125609,1.4822865,4153.2,4153.1,1.15604]
[1758653126202,1.1783865,4153.2,4153.1,1.15604]
[1758653126923,1.4822865,4153.2,4153.1,1.15604]
[1758653127415,0.9698865,4153.2,4153.1,1.15604]
[1758653127612,0.4574,4153.2,4153.1,1.15604]
[1758653128216,0.246,4153.2,4153.1,1.15604]
[1758653128414,0.4545,4153.2,4153.1,1.15604]
[1758653128715,0.88773,4153.2,4153.1,0.7228]
[1758653128901,1.47924938,4153.2,4153.1,1.15604]
[1758653129917,1.17534938,4153.2,4153.1,1.15604]
[1758653130917,1.47924938,4153.2,4153.1,1.15604]
[1758653131316,1.17534938,4153.2,4153.1,1.15604]
[1758653132212,1.47924938,4153.2,4153.1,1.15604]
[1758653132416,1.47924938,4153.2,4153.0,3.4242]
[1758653132417,1.15414,4153.1,4153.0,3.4242]
[1758653132622,1.66648938,4153.1,4153.0,3.7504]
[1758653133011,1.66648938,4153.1,4153.0,3.2078]
[1758653134920,0.7209,4152.7,4152.6,0.5426]
[1758653135115,1.47924938,4152.7,4152.6,1.19579]
[1758653135514,1.47924938,4152.7,4152.6,0.7625]
[1758653136022,1.17534938,4152.7,4152.6,1.19579]
[1758653136821,0.75834938,4152.7,4152.6,1.19579]
[1758653137120,0.75834938,4152.7,4152.5,3.3301]
[1758653137121,0.94564,4153.1,4153.0,0.8848]
[1758653137320,1.91129119,4153.1,4153.0,0.8848]
[1758653137826,0.75715119,4153.1,4153.0,1.31805]
[1758653138121,0.75715119,4153.1,4153.0,4.52585]
[1758653140726,1.47805119,4153.1,4153.0,4.52585]
[1758653141424,0.75715119,4153.1,4153.0,4.52585]
[1758653142621,0.96565119,4153.1,4153.0,4.52585]
[1758653144722,0.75715119,4153.1,4153.0,4.52585]
[1758653146014,0.51115119,4153.1,4153.0,4.52585]
[1758653146216,2.16476,4155.9,4153.0,4.52585]
[1758653146217,3.62466,4154.4,4154.3,1.19561]
[1758653146519,0.20836,4154.4,4154.3,1.19561]
[1758653146727,0.45436,4154.4,4154.3,1.19561]
[1758653147120,0.66286,4154.4,4154.3,1.19561]
[1758653147926,0.20836,4154.4,4154.3,1.19561]
[1758653150725,0.41686,4154.4,4154.3,0.7625]
[1758653150933,0.7209,4154.1,4154.0,3.2078]
[1758653151234,0.64165,4154.0,4153.9,0.5426]
[1758653151432,0.85015,4154.0,4153.9,0.5426]
[1758653151632,1.15405,4154.0,4153.9,0.5426]
[1758653152025,0.7209,4154.0,4153.9,0.5426]
[1758653152627,0.417,4153.7,4153.6,0.97578]
[1758653152923,0.417,4153.7,4153.6,1.19568]
[1758653153626,0.417,4153.7,4153.6,0.7625]
[1758653153829,1.16408,4153.7,4153.6,0.5426]
[1758653154335,1.16408,4153.7,4153.5,3.2078]
[1758653154336,1.16819,4153.6,4153.5,3.2078]
[1758653154638,1.16819,4153.6,4153.5,3.4131]
[1758653154936,1.16819,4153.6,4153.2,0.3315]
[1758653154937,1.16822,4153.3,4153.2,0.3315]
[1758653155138,0.735,4153.1,4153.0,3.9638]
[1758653158239,1.16824,4153.1,4153.0,3.9638]
[1758653158736,0.2073,4153.1,4153.0,4.0957]
[1758653159433,0.64054,4153.1,4153.0,4.0957]
[1758653159639,1.16824,4153.1,4153.0,0.756]
[1758653160228,0.43327,4152.8,4152.7,0.3315]
[1758653160433,1.16827,4152.8,4152.7,0.756]
[1758653161334,0.735,4152.8,4152.7,0.756]
[1758653161540,1.16823,4153.2,4153.1,0.756]
[1758653161744,1.6765341,4153.2,4153.1,0.756]
[1758653162138,1.9225341,4153.2,4153.1,0.756]
[1758653164138,1.1754041,4153.2,4153.1,0.756]
[1758653164342,1.6086341,4153.2,4153.1,0.756]
[1758653164945,0.4211,4152.9,4152.8,0.2053]
[1758653165145,0.735,4152.9,4152.8,0.756]
[1758653165645,0.735,4152.9,4152.8,1.18927]
[1758653165946,1.16826,4152.9,4152.8,0.756]
[1758653166245,1.67657679,4152.9,4152.8,0.756]
[1758653166452,1.24331679,4152.9,4152.8,0.756]
[1758653166636,1.24331679,4152.9,4152.8,1.18927]
[1758653166840,1.24331679,4152.9,4152.8,0.756]
[1758653167341,0.735,4152.9,4152.8,0.756]
[1758653167541,1.16826,4152.9,4152.8,0.756]
[1758653167947,0.735,4152.9,4152.8,1.18927]
[1758653168137,0.735,4152.9,4152.8,0.756]
[1758653168339,0.735,4152.9,4152.8,1.18927]
[1758653168838,1.16826,4152.9,4152.8,0.756]
[1758653169650,0.735,4152.9,4152.8,1.18927]
[1758653171346,0.4211,4152.9,4152.8,1.18927]
[1758653171555,0.7672,4153.2,4153.1,1.18924]
[1758653171850,1.27535448,4153.2,4153.1,1.18924]
[1758653172044,1.92238448,4153.2,4153.1,1.18924]
[1758653172243,1.92238448,4153.2,4153.1,0.756]
[1758653175149,1.48915448,4153.2,4153.1,1.18924]
[1758653176039,1.92238448,4153.2,4153.1,0.2053]
[1758653176255,1.48915448,4153.2,4153.1,0.5278]
[1758653176552,1.48915448,4153.2,4153.1,1.17744]
[1758653178748,0.50815448,4153.2,4153.1,6.17744]
[1758653179051,0.4297,4154.2,4154.1,1.17503]
[1758653179251,1.18421807,4154.2,4154.1,1.17503]
[1758653179847,1.18421807,4154.2,4154.1,0.7419]
[1758653180556,1.49481807,4154.2,4154.1,0.7419]
[1758653182653,0.93821807,4154.2,4154.1,1.17503]
[1758653182859,0.50851807,4154.2,4154.1,1.17503]
[1758653183049,0.75451807,4154.3,4154.1,0.85253]
[1758653183254,0.50851807,4154.2,4154.1,0.85253]
[1758653183458,0.246,4154.3,4154.1,0.85253]
[1758653183658,0.246,4154.3,4154.2,3.9544]
[1758653183966,0.20836,4154.4,4154.3,1.17971]
[1758653184263,0.20836,4154.4,4154.3,6.17971]
[1758653184856,0.20836,4154.4,4154.3,0.7466]
[1758653185867,0.20836,4154.4,4154.3,1.17971]
[1758653186967,0.20836,4154.4,4154.3,6.17971]
[1758653188962,0.97119,4155.5,4155.4,0.2092]
[1758653189164,1.94320237,4155.5,4155.4,0.5336]
[1758653189374,1.19002,4155.2,4155.1,0.7466]
[1758653191366,0.43303,4155.1,4154.8,0.3244]
[1758653191568,1.1901,4154.4,4154.3,0.2092]
[1758653191764,1.1901,4154.4,4154.0,0.5336]
[1758653191765,0.757,4154.1,4154.0,0.5336]
[1758653191964,0.757,4154.1,4154.0,0.7466]
[1758653192470,0.757,4154.1,4154.0,1.17974]
[1758653193169,0.757,4154.1,4154.0,0.2092]
[1758653193170,1.19013,4154.1,4154.0,0.2092]
[1758653194067,0.757,4154.1,4154.0,0.2092]
[1758653194468,0.757,4154.1,4154.0,0.5336]
[1758653195076,1.19013,4154.1,4154.0,0.2092]
[1758653195378,0.757,4154.1,4154.0,0.2092]
[1758653195674,0.757,4154.1,4154.0,0.5336]
[1758653195975,1.19013,4154.1,4154.0,0.5336]
[1758653196271,0.757,4154.1,4154.0,0.64234]
[1758653196474,1.19013,4154.1,4154.0,0.5336]
[1758653196674,0.757,4154.1,4154.0,0.64234]
[1758653196978,0.757,4154.1,4154.0,0.96674]
[1758653197763,1.19013,4154.1,4154.0,0.2092]
[1758653198077,1.19015,4153.9,4153.8,3.2078]
[1758653198382,1.43615,4153.9,4153.8,3.2078]